[Event "Schack-SM 2022: Mastarklassen-Elit"]
[Site "Fyrishov, Idrottsgatan 2, Uppsala, Sweden"]
[Date "2022.07.02"]
[Round "1.3"]
[White "Thorn, Eric"]
[Black "Furhoff, Johan"]
[Result "1-0"]
[TimeControl "90 minutes for 40 moves + 30 minutes for the rest of the game + 30 seconds per move from move one."]
[WhiteTitle "FM"]
[BlackTitle "IM"]
[WhiteFideId "1710729"]
[BlackFideId "1701797"]
[WhiteElo "2366"]
[BlackElo "2348"]

1. e4 {[%emt 02:58:00]} e5 {[%emt 00:00:06]} 2. Nf3 {[%emt 00:00:06]} Nc6
{[%emt 00:00:05]} 3. Bb5 {[%emt 00:00:11]} a6 {[%emt 00:00:09]} 4. Ba4 {[%emt
00:00:08]} d6 {[%emt 00:00:07]} 5. O-O {[%emt 00:03:02]} Nf6 {[%emt 00:00:30]}
6. c3 {[%emt 00:11:56]} b5 {[%emt 00:06:22]} 7. Bb3 {[%emt 00:01:51]} Be7
{[%emt 00:02:40]} 8. Re1 {[%emt 00:02:17]} O-O {[%emt 00:00:32]} 9. h3 Na5
{[%emt 00:07:38]} 10. Bc2 c5 {[%emt 00:00:38]} 11. d4 Qc7 {[%emt 00:04:18]} 12.
Nbd2 cxd4 {[%emt 00:04:31]} 13. cxd4 {[%emt 00:00:15]} Bb7 {[%emt 00:01:23]} 14.
d5 {[%emt 00:02:46]} Rac8 {[%emt 00:02:04]} 15. Bd3 {[%emt 00:03:29]} Ne8
{[%emt 00:12:09]} 16. a4 {[%emt 00:20:55]} Nc4 {[%emt 00:01:29]} 17. axb5
{[%clk 00:54:25]} {[%emt 00:02:01]} axb5 {[%emt 00:10:30]} 18. b3 {[%emt
00:04:20]} Nxd2 {[%emt 00:00:09]} 19. Bxd2 {[%clk 00:45:05]} {[%emt 00:00:05]}
f5 {[%emt 00:18:23]} 20. Qb1 {[%emt 00:06:55]} fxe4 {[%clk 00:39:53]} {[%emt
00:00:03]} 21. Bxe4 {[%clk 00:27:22]} Nf6 {[%clk 00:38:43]} {[%emt 00:01:51]}
22. Bf5 {[%clk 00:23:17]} Ra8 {[%clk 00:24:20]} {[%emt 00:19:53]} 23. Rxa8
{[%clk 00:20:30]} Bxa8 {[%clk 00:24:41]} 24. Be6+ {[%clk 00:20:30]} Kh8 {[%clk
00:24:41]} {[%emt 00:00:49]} 25. Rc1 {[%clk 00:16:19]} Qd8 {[%clk 00:16:39]}
{[%emt 00:14:23]} 26. Ng5 {[%clk 00:14:42]} Qe8 {[%clk 00:16:39]} {[%emt
00:01:26]} 27. Bb4 {[%clk 00:03:08]} g6 {[%clk 00:12:09]} {[%emt 00:17:04]} 28.
Rc8 {[%clk 00:03:22]} Qxc8 {[%clk 00:12:15]} {[%emt 00:00:40]} 29. Bxc8 {[%clk
00:03:47]} Rxc8 {[%clk 00:12:22]} {[%emt 00:00:29]} 30. Bxd6 {[%clk 00:03:53]}
Bxd6 {[%clk 00:10:59]} {[%emt 00:02:16]} 31. Nf7+ {[%clk 00:04:17]} Kg7 {[%clk
00:08:02]} {[%emt 00:03:32]} 32. Nxd6 {[%clk 00:04:35]} Rc5 {[%clk 00:07:19]}
{[%emt 00:01:27]} 33. Qa1 {[%clk 00:04:20]} Rxd5 {[%clk 00:06:48]} {[%emt
00:01:45]} 34. Qa7+ {[%clk 00:04:43]} Kh6 {[%clk 00:06:56]} {[%emt 00:00:29]}
35. Nf7+ {[%clk 00:03:52]} Kg7 {[%clk 00:07:17]} {[%emt 00:01:30]} 36. Nxe5+
{[%clk 00:03:41]} Kh6 {[%clk 00:07:34]} {[%emt 00:00:54]} 37. Nf7+ {[%clk
00:03:48]} Kg7 {[%clk 00:07:56]} {[%emt 00:00:31]} 38. Nd8+ {[%clk 00:04:10]}
1-0

[Event "Schack-SM 2022: Mastarklassen-Elit"]
[Site "Fyrishov, Idrottsgatan 2, Uppsala, Sweden"]
[Date "2022.07.02"]
[Round "1.4"]
[White "Wiedenkeller, Michael"]
[Black "Andersson, Tommy"]
[Result "1/2-1/2"]
[TimeControl "90 minutes for 40 moves + 30 minutes for the rest of the game + 30 seconds per move from move one."]
[WhiteTitle "IM"]
[BlackTitle "IM"]
[WhiteFideId "1700146"]
[BlackFideId "1703803"]
[WhiteElo "2437"]
[BlackElo "2384"]

1. d4 {[%clk 01:30:24]} {[%emt 00:00:34]} d5 {[%clk 01:30:43]} {[%emt
00:00:18]} 2. c4 {[%clk 01:30:40]} {[%emt 00:00:15]} e5 {[%clk 01:30:01]}
{[%emt 00:01:11]} 3. dxe5 {[%clk 01:28:00]} {[%emt 00:03:10]} d4 {[%clk
01:30:23]} {[%emt 00:00:08]} 4. a3 {[%clk 01:27:08]} {[%emt 00:01:23]} Nc6
{[%clk 01:30:32]} {[%emt 00:00:20]} 5. e3 {[%clk 01:25:49]} {[%emt 00:01:49]}
Be6 {[%clk 01:21:28]} {[%emt 00:09:34]} 6. Nf3 {[%clk 01:12:56]} {[%emt
00:13:22]} dxe3 {[%clk 01:21:29]} {[%emt 00:00:31]} 7. Qxd8+ {[%clk 01:13:12]}
{[%emt 00:00:14]} Rxd8 {[%clk 01:21:51]} {[%emt 00:00:07]} 8. Bxe3 {[%clk
01:13:28]} {[%emt 00:00:14]} Nh6 {[%clk 01:22:04]} {[%emt 00:00:17]} 9. Nc3
{[%clk 01:03:57]} {[%emt 00:10:01]} Nf5 {[%clk 01:22:11]} {[%emt 00:00:23]} 10.
Bg5 {[%clk 00:55:17]} {[%emt 00:09:11]} Be7 {[%clk 01:19:58]} {[%emt 00:02:42]}
11. Bxe7 {[%clk 00:43:12]} {[%emt 00:12:36]} Kxe7 {[%clk 01:14:22]} {[%emt
00:06:05]} 12. Be2 {[%clk 00:39:21]} {[%emt 00:04:21]} Nfd4 {[%clk 01:12:27]}
{[%emt 00:02:24]} 13. Nxd4 {[%clk 00:38:32]} {[%emt 00:01:20]} Rxd4 {[%clk
01:12:01]} {[%emt 00:00:56]} 14. Nb5 {[%clk 00:32:13]} {[%emt 00:06:49]} Re4
{[%clk 01:03:19]} {[%emt 00:09:12]} 15. Nc3 {[%clk 00:32:27]} {[%emt 00:00:16]}
Rd4 {[%clk 01:02:52]} {[%emt 00:00:58]} 16. Nb5 {[%clk 00:31:32]} {[%emt
00:01:24]} Re4 {[%clk 00:59:56]} {[%emt 00:03:26]} 17. Nc3 {[%clk 00:30:47]}
{[%emt 00:01:15]} Rd4 {[%emt 00:00:28]} 1/2-1/2

[Event "Schack-SM 2022: Mastarklassen-Elit"]
[Site "Fyrishov, Idrottsgatan 2, Uppsala, Sweden"]
[Date "2022.07.02"]
[Round "1.5"]
[White "Johansson, Jan"]
[Black "Cederstam, Carl"]
[Result "0-1"]
[TimeControl "90 minutes for 40 moves + 30 minutes for the rest of the game + 30 seconds per move from move one."]
[WhiteTitle "IM"]
[BlackTitle "FM"]
[WhiteFideId "1700103"]
[BlackFideId "1713329"]
[WhiteElo "2306"]
[BlackElo "2332"]

1. d4 {[%clk 01:30:57]} {[%emt 00:00:01]} d5 {[%clk 01:30:45]} {[%emt
00:00:15]} 2. Nf3 {[%clk 01:31:17]} {[%emt 00:00:10]} e6 {[%clk 01:31:01]}
{[%emt 00:00:15]} 3. c4 {[%clk 01:31:18]} {[%emt 00:00:29]} a6 {[%clk
01:31:11]} {[%emt 00:00:20]} 4. e3 {[%clk 01:23:22]} {[%emt 00:08:26]} Nf6
{[%clk 01:31:07]} {[%emt 00:00:34]} 5. Nc3 {[%clk 01:22:39]} {[%emt 00:01:13]}
Nbd7 {[%clk 01:29:29]} {[%emt 00:02:08]} 6. cxd5 {[%clk 01:09:14]} {[%emt
00:13:55]} exd5 {[%clk 01:29:49]} {[%emt 00:00:10]} 7. Bd3 {[%clk 01:04:49]}
{[%emt 00:04:55]} Bd6 {[%clk 01:28:30]} {[%emt 00:01:48]} 8. O-O {[%clk
01:01:38]} {[%emt 00:03:41]} O-O {[%clk 01:20:59]} {[%emt 00:08:01]} 9. Bd2
{[%clk 01:01:32]} {[%emt 00:00:36]} b6 {[%clk 01:17:58]} {[%emt 00:03:31]} 10.
e4 {[%clk 00:52:38]} {[%emt 00:09:25]} dxe4 {[%clk 01:17:51]} {[%emt 00:00:37]}
11. Nxe4 {[%clk 00:53:03]} {[%emt 00:00:05]} Be7 {[%clk 01:14:52]} {[%emt
00:03:29]} 12. Re1 {[%clk 00:46:09]} {[%emt 00:07:24]} Bb7 {[%clk 01:12:05]}
{[%emt 00:03:15]} 13. Ng3 {[%clk 00:38:20]} {[%emt 00:08:20]} Re8 {[%clk
01:10:35]} {[%emt 00:02:00]} 14. Bc4 {[%clk 00:36:24]} {[%emt 00:01:57]} b5
{[%clk 01:03:29]} {[%emt 00:07:35]} 15. Qb3 {[%clk 00:26:53]} {[%emt 00:10:32]}
bxc4 {[%clk 00:52:55]} {[%emt 00:11:04]} 16. Qxb7 {[%clk 00:24:54]} {[%emt
00:02:28]} Qb8 {[%clk 00:45:40]} {[%emt 00:07:46]} 17. Qc6 {[%clk 00:20:22]}
{[%emt 00:05:02]} Qb5 {[%clk 00:28:34]} {[%emt 00:17:33]} 18. Qxc7 {[%clk
00:16:17]} {[%emt 00:04:37]} Rac8 {[%clk 00:27:22]} {[%emt 00:01:41]} 19. Qa5
{[%clk 00:15:43]} {[%emt 00:01:05]} Qxb2 {[%clk 00:27:10]} {[%emt 00:00:42]} 20.
Nf5 {[%clk 00:05:11]} {[%emt 00:11:03]} Bf8 {[%clk 00:16:39]} {[%emt 00:11:01]}
21. Reb1 {[%clk 00:05:10]} {[%emt 00:00:31]} Qc2 {[%clk 00:14:42]} {[%emt
00:02:26]} 22. Ne3 {[%clk 00:04:07]} {[%emt 00:01:33]} Qd3 {[%clk 00:15:04]}
{[%emt 00:00:07]} 23. Rd1 {[%clk 00:03:20]} {[%emt 00:01:18]} Ne4 {[%clk
00:09:40]} {[%emt 00:05:54]} 24. Be1 {[%clk 00:03:42]} {[%emt 00:00:08]} Qa3
{[%clk 00:09:15]} {[%emt 00:00:55]} 25. Qf5 {[%clk 00:03:29]} {[%emt 00:00:43]}
Ndf6 {[%clk 00:08:35]} {[%emt 00:01:11]} 26. Ne5 {[%clk 00:03:19]} {[%emt
00:00:39]} c3 {[%clk 00:06:42]} {[%emt 00:02:24]} 27. Rdc1 {[%clk 00:03:16]}
{[%emt 00:00:32]} Qa4 {[%clk 00:06:17]} {[%emt 00:00:54]} 28. Nc2 {[%clk
00:03:17]} {[%emt 00:00:30]} Red8 {[%clk 00:04:49]} {[%emt 00:01:59]} 29. g4
{[%clk 00:02:25]} {[%emt 00:01:22]} Nd6 {[%clk 00:03:34]} {[%emt 00:01:45]} 30.
Qf3 {[%clk 00:02:43]} {[%emt 00:00:11]} Nfe4 {[%clk 00:02:50]} {[%emt
00:01:15]} 31. Qf4 {[%clk 00:02:34]} {[%emt 00:00:38]} Be7 {[%clk 00:02:55]}
{[%emt 00:00:26]} 32. Nf3 {[%clk 00:02:30]} {[%emt 00:00:33]} Rb8 {[%clk
00:02:51]} {[%emt 00:00:35]} 33. Ne3 {[%clk 00:02:40]} {[%emt 00:00:20]} g5
{[%clk 00:01:53]} {[%emt 00:01:27]} 34. Qe5 {[%clk 00:02:43]} {[%emt 00:00:27]}
Bf6 {[%clk 00:01:47]} {[%emt 00:00:37]} 35. Qd5 {[%clk 00:02:58]} {[%emt
00:00:14]} Rb5 {[%clk 00:01:52]} {[%emt 00:00:25]} 36. Qc6 {[%clk 00:03:13]}
{[%emt 00:00:15]} Rc8 {[%clk 00:02:07]} {[%emt 00:00:16]} 37. Qd7 {[%clk
00:03:30]} {[%emt 00:00:11]} Rd8 {[%clk 00:01:25]} {[%emt 00:01:12]} 38. Qc6
{[%clk 00:03:52]} {[%emt 00:00:09]} Rc8 {[%clk 00:01:20]} {[%emt 00:00:35]} 39.
Qd7 {[%clk 00:04:17]} {[%emt 00:00:06]} Qa5 {[%clk 00:01:02]} {[%emt 00:00:45]}
40. Rab1 {[%clk 00:01:40]} {[%emt 00:03:10]} Rc7 {[%clk 00:00:42]} {[%emt
00:00:50]} 41. Rxb5 {[%clk 00:00:40]} {[%emt 00:01:29]} axb5 {[%clk 00:01:08]}
{[%emt 00:00:05]} 42. Nd5 {[%clk 00:28:32]} {[%emt 00:02:37]} 0-1